bitfinex-derivatives/quotes_SOLF0:USTF0_20241120
["timestamp","ask_amount","ask_price","bid_price","bid_amount"]
[1732076257319,10.63658331,232.49,232.41,2.42]
[1732076258223,10.63658331,232.52,232.41,2.42]
[1732076258419,1.2919,232.54,232.41,2.42]
[1732076259217,2.1479,232.52,232.45,2.1484]
[1732076259721,1.2919,232.54,232.45,2.1484]
[1732076259929,2.1476,232.55,232.42,10.63658331]
[1732076260224,12.78279696,232.58,232.42,11.84868331]
[1732076260425,12.78279696,232.58,232.43,1.282]
[1732076260627,2.1475,232.56,232.43,1.282]
[1732076261424,2.1475,232.56,232.49,2.148]
[1732076261624,2.1475,232.56,232.5,2.42]
[1732076262021,2.1476,232.55,232.5,2.42]
[1732076262653,2.1473,232.59,232.5,2.42]
[1732076263247,2.1471,232.61,232.5,2.42]
[1732076263521,2.11624069,232.65,232.51,10.63658331]
[1732076263724,2.11624069,232.65,232.59,2.1472]
[1732076263921,2.11624069,232.65,232.6,2.42]
[1732076264224,2.1466,232.65,232.61,2.42]
[1732076265336,2.1464,232.68,232.62,2.1469]
[1732076265758,12.04864331,232.7,232.61,2.42]
[1732076265848,0.17276,232.7,232.66,2.1465]
[1732076266031,0.17276,232.7,232.67,2.42]
[1732076266325,1.2007,232.79,232.68,2.42]
[1732076266531,1.2007,232.79,232.69,2.42]
[1732076266830,1.2007,232.79,232.66,10.63658331]
[1732076267020,2.1456,232.76,232.69,2.1462]
[1732076268328,1.2007,232.79,232.7,2.42]
[1732076268329,2.146,232.72,232.7,2.42]
[1732076268930,2.1462,232.7,232.62,1.2689]
[1732076269133,2.1462,232.7,232.66,2.42]
[1732076270825,2.1464,232.68,232.66,2.42]
[1732076271132,12.78298331,232.68,232.66,2.42]
[1732076271329,10.63658331,232.71,232.66,2.42]
[1732076271531,12.78268331,232.71,232.66,2.42]
[1732076272433,10.63658331,232.74,232.66,2.42]
[1732076272630,10.63658331,232.77,232.66,2.42]
[1732076273234,10.63658331,232.77,232.69,2.1462]
[1732076273235,12.78218331,232.77,232.69,2.1462]
[1732076274035,10.63658331,232.77,232.66,2.42]
[1732076274734,1.2007,232.79,232.66,2.42]
[1732076274936,2.1456,232.76,232.66,2.42]
[1732076276238,2.1456,232.76,232.7,2.1462]
[1732076278637,2.1459,232.73,232.67,2.1464]
[1732076278836,10.63658331,232.73,232.35,12.89]
[1732076279031,10.63658331,232.73,232.58,13.03658331]
[1732076279421,2.1461,232.71,232.65,2.1466]
[1732076279461,2.1461,232.71,232.66,2.4]
[1732076281565,10.63658331,232.76,232.66,2.4]
[1732076281840,11.83728331,232.79,232.66,2.4]
[1732076282434,2.1458,232.75,232.66,2.4]
[1732076282633,11.83728331,232.79,232.68,2.1463]
[1732076282842,2.1458,232.74,232.68,2.1463]
[1732076283252,10.63658331,232.76,232.66,2.4]
[1732076283446,2.1459,232.73,232.67,2.1464]
[1732076283745,2.1459,232.73,232.68,2.4]
[1732076284345,2.1459,232.73,232.68,4.5463]
[1732076284757,2.1462,232.7,232.68,2.4]
[1732076285149,2.1461,232.71,232.68,2.4]
[1732076285947,2.1461,232.71,232.65,2.1466]
[1732076286155,2.1461,232.71,232.68,2.4]
[1732076287351,2.1463,232.69,232.63,2.1467]
[1732076287555,10.63658331,232.7,232.64,2.4]
[1732076287747,10.63658331,232.7,232.55,10.63658331]
[1732076287950,10.63658331,232.7,232.58,2.4]
[1732076288153,10.63658331,232.73,232.58,13.03658331]
[1732076288552,10.63658331,232.76,232.61,10.63658331]
[1732076288853,11.83728331,232.79,232.64,10.63658331]
[1732076289049,11.83728331,232.79,232.65,2.4]
[1732076289854,2.1458,232.74,232.69,2.1463]
[1732076290956,11.83728331,232.79,232.65,2.4]
[1732076291154,11.83728331,232.79,232.68,2.1463]
[1732076291510,10.63658331,232.76,232.65,2.4]
[1732076291673,10.63658331,232.76,232.63,2.4722]
[1732076291674,10.63658331,232.73,232.66,2.4]
[1732076292660,10.63658331,232.73,232.63,2.1468]
[1732076292958,10.63658331,232.7,232.64,2.4]
[1732076293160,10.63658331,232.7,232.65,2.4]
[1732076293858,2.1464,232.68,232.65,2.4]
[1732076294352,10.63658331,232.7,232.65,2.4]
[1732076294551,10.63658331,232.67,232.56,2.576]
[1732076294750,10.63658331,232.67,232.58,2.4]
[1732076295461,1.3161,232.69,232.58,2.4]
[1732076295759,2.1465,232.66,232.59,2.1471]
[1732076295957,10.63658331,232.68,232.59,2.1471]
[1732076296159,10.63658331,232.68,232.58,2.4]
[1732076296454,10.63658331,232.65,232.58,4.5472]
[1732076296659,10.63658331,232.65,232.58,2.4]
[1732076296855,2.147,232.61,232.58,2.4]
[1732076297259,10.63658331,232.65,232.57,2.4]
[1732076300256,2.147,232.62,232.57,2.4]
[1732076301760,2.1472,232.59,232.57,2.4]
[1732076302022,2.1472,232.59,232.55,2.4]
[1732076302162,10.63658331,232.62,232.55,2.4]
[1732076302365,10.63658331,232.65,232.55,2.4]
[1732076302857,10.63658331,232.65,232.56,2.1474]
[1732076303062,10.63658331,232.65,232.55,2.4]
[1732076303263,2.1469,232.62,232.55,4.5475]
[1732076303661,2.1469,232.62,232.55,2.4]
[1732076304065,10.63658331,232.65,232.55,2.4]
[1732076304258,2.1468,232.64,232.58,2.1473]
[1732076304774,2.1468,232.64,232.55,2.4]
[1732076304775,2.1464,232.68,232.55,13.03658331]
[1732076304968,1.3161,232.69,232.56,2.493]
[1732076305761,10.63658331,232.74,232.61,10.63658331]
[1732076305963,10.63658331,232.74,232.62,2.4]
[1732076306164,10.63658331,232.74,232.66,2.1465]
[1732076306165,2.1461,232.72,232.66,2.1465]
[1732076306366,2.1461,232.72,232.62,2.4]
[1732076306863,2.1461,232.72,232.66,2.1465]
[1732076310961,10.35708165,232.73,232.58,10.63658331]
[1732076311170,10.35708165,232.73,232.59,2.4]
[1732076312263,2.1464,232.68,232.62,2.1469]
[1732076312964,2.1466,232.66,232.6,2.147]
[1732076313389,12.51801932,232.7,232.59,2.4]
[1732076313566,10.63658331,232.68,232.59,2.4]
[1732076314172,10.36088252,232.67,232.57,1.293]
[1732076314374,10.36088252,232.67,232.59,2.1472]
[1732076315266,2.1467,232.64,232.59,2.1472]
[1732076315670,10.36088252,232.67,232.58,2.4]
[1732076315865,2.1469,232.62,232.59,2.4]
[1732076318874,2.1471,232.6,232.59,2.4]
[1732076319267,2.1474,232.57,232.56,2.4]
[1732076319676,10.63658331,232.62,232.56,2.4]
[1732076319980,2.1473,232.58,232.55,2.4]
[1732076320769,10.63658331,232.62,232.47,2.5054]
[1732076320974,2.1474,232.57,232.48,2.4]
[1732076321276,10.35917597,232.61,232.48,2.4]
[1732076321277,10.63658331,232.59,232.49,2.148]
[1732076321525,2.1476,232.55,232.48,2.4]
[1732076323372,2.1476,232.55,232.5,2.148]
[1732076324472,2.1476,232.55,232.49,2.1481]
[1732076324675,10.63658331,232.56,232.5,2.4]
[1732076324889,10.63658331,232.59,232.5,2.4]
[1732076325076,2.1476,232.55,232.5,4.548]
[1732076326680,10.63658331,232.59,232.5,2.4]
[1732076326881,2.1475,232.56,232.5,2.4]
[1732076327380,10.63658331,232.62,232.5,2.4]
[1732076327579,10.63658331,232.65,232.5,2.4]
[1732076327780,10.34075474,232.64,232.5,2.4]
[1732076327983,10.63658331,232.62,232.51,2.4]
[1732076328179,2.1472,232.6,232.51,2.4]
[1732076328476,10.63658331,232.62,232.51,2.4]
[1732076328882,10.63658331,232.62,232.56,2.1474]
[1732076329178,10.63658331,232.65,232.57,2.4]
[1732076330380,2.1469,232.63,232.57,4.5474]
[1732076330584,2.10465878,232.7,232.57,2.4]
[1732076330778,181.22972784,232.75,232.6,2.147]
[1732076330779,20.97851841,232.72,232.6,2.147]
[1732076330980,10.3419351,232.71,232.6,2.147]
[1732076331285,2.14261857,232.7,232.6,2.147]
[1732076332083,10.63658331,232.66,232.51,10.63658331]
[1732076332278,10.63658331,232.66,232.52,2.4]
[1732076332883,10.63658331,232.66,232.53,1.2874]
[1732076333086,2.1468,232.63,232.57,2.1474]
[1732076333275,2.1468,232.63,232.58,2.4]
[1732076333676,10.63658331,232.72,232.58,2.4]
[1732076333882,10.3445352,232.71,232.58,2.4]
[1732076334080,2.1463,232.7,232.63,2.1468]
[1732076334279,10.3445352,232.71,232.64,2.4]
[1732076334486,11.88168331,232.75,232.65,2.4]
[1732076334778,11.88168331,232.75,232.59,1.2596]
[1732076334779,10.34435951,232.74,232.66,2.4]
[1732076335483,2.1461,232.71,232.66,2.4]
[1732076335694,10.34435951,232.74,232.66,2.4]
[1732076335887,2.1463,232.69,232.59,1.2596]
[1732076336087,2.1463,232.69,232.6,2.4]
[1732076336286,10.63658331,232.72,232.6,2.4]
[1732076336980,11.88168331,232.75,232.6,13.03658331]
[1732076337184,10.63658331,232.78,232.63,10.63658331]
[1732076337384,10.34622216,232.77,232.64,2.5871]
[1732076337783,2.1456,232.76,232.67,2.1464]
[1732076338001,2.1456,232.76,232.68,2.4]
[1732076339289,2.1456,232.76,232.7,2.1462]
[1732076339889,2.146,232.72,232.64,2.5871]
[1732076340091,10.63658331,232.75,232.65,2.4]
[1732076340485,2.1459,232.73,232.66,2.1465]
[1732076340685,10.33886869,232.74,232.66,2.1465]
[1732076341182,2.1463,232.69,232.67,2.4]
[1732076341405,10.33886869,232.71,232.67,2.4]
[1732076342286,2.1462,232.7,232.67,2.4]
[1732076342987,2.1464,232.68,232.61,2.147]
[1732076343193,2.1464,232.68,232.59,1.2596]
[1732076343194,2.1464,232.68,232.62,2.4]
[1732076344283,10.33886869,232.69,232.62,2.4]
[1732076344491,10.33886869,232.68,232.62,2.4]
[1732076344689,10.63658331,232.72,232.62,2.4]
[1732076344892,10.33981623,232.71,232.62,2.4]
[1732076345089,12.78238331,232.75,232.62,2.4]
[1732076345283,10.33700562,232.74,232.62,2.4]
[1732076345698,2.1458,232.74,232.69,2.1462]
[1732076345995,2.1458,232.74,232.7,2.4]
[1732076346709,2.1457,232.76,232.7,4.5462]
[1732076346895,12.48039646,232.76,232.7,2.4]
[1732076347090,10.33469646,232.75,232.7,2.4]
[1732076347395,2.1457,232.76,232.7,2.4]
[1732076347989,2.1457,232.75,232.7,2.4]
[1732076348191,10.63658331,232.78,232.7,2.4]
[1732076348390,11.6193115,232.77,232.7,2.4]
[1732076348597,2.1458,232.74,232.7,2.4]
[1732076348793,2.1458,232.74,232.63,10.63658331]
[1732076349095,2.1458,232.74,232.64,2.4]
[1732076349499,2.1458,232.74,232.67,2.1464]
[1732076349694,2.1458,232.74,232.64,2.4]
[1732076349900,65.94345526,232.91,232.69,10.63658331]
[1732076350192,10.32997451,232.82,232.77,2.1455]
[1732076350416,10.32997451,232.85,232.78,2.4]
[1732076350585,10.32605787,232.84,232.78,2.4]
[1732076350786,2.1451,232.82,232.78,2.4]
[1732076351393,10.32578242,232.85,232.78,2.4]
[1732076351588,10.63658331,232.9,232.78,2.4]
[1732076351894,10.32043235,232.89,232.81,2.1451]
[1732076352298,10.32043235,232.89,232.83,2.145]
[1732076352500,2.11397412,232.92,232.84,2.4]
[1732076352797,12.4279915,232.92,232.84,2.4]
[1732076353698,2.1445,232.88,232.84,2.4]
[1732076354100,2.11397412,232.92,232.84,2.4]
[1732076354299,2.1444,232.89,232.84,2.4]
[1732076357602,2.1444,232.89,232.85,2.4]
[1732076357802,42.42146475,232.94,232.85,2.4]
[1732076358001,0.8209,233.02,232.85,2.4]
[1732076358002,0.20994,232.97,232.85,2.4]
[1732076358401,2.35364,232.97,232.9,2.1443]
[1732076358599,2.35364,232.97,232.91,2.4]
[1732076359813,0.20994,232.97,232.92,2.1441]
[1732076359946,35.93539079,233.1,232.96,10.63658331]
[1732076360175,2.17630836,233.1,232.97,2.4]
[1732076360800,2.1427,233.08,233.01,2.1433]
[1732076361200,178.00832784,233.22,233.13,21.0]
[1732076361408,1.3048,233.36,233.21,10.63658331]
[1732076361707,11.53686928,233.36,233.22,2.4]
[1732076361906,1.0,233.35,233.22,2.4]
[1732076362104,3.1403,233.35,233.22,2.4]
[1732076363498,2.1404,233.34,233.22,2.4]
[1732076363900,1.0,233.35,233.22,2.4]
[1732076364104,18.23368134,233.36,233.18,2.1417]
[1732076364105,2.1407,233.3,233.18,4.5417]
[1732076364303,1.3153,233.29,233.18,2.4]
[1732076364505,1.1915,233.28,233.18,2.4]
[1732076365504,2.1411,233.26,233.15,2.4]
[1732076365904,1.2441,233.25,233.15,2.4]
[1732076367508,3.39764454,233.25,233.15,2.4]
[1732076367709,2.1413,233.23,233.15,2.4]
[1732076370110,3.36592118,233.25,233.15,2.4]
[1732076370111,3.36592118,233.25,233.16,2.1419]
[1732076370615,3.36592118,233.25,233.15,2.4]
[1732076372206,2.1414,233.23,233.15,2.4]
[1732076372404,16.92888134,233.24,233.07,16.92888134]
[1732076372628,16.92888134,233.2,233.07,2.4]
[1732076373112,2.142,233.16,233.07,4.5427]
[1732076373314,1.2687,233.15,233.07,4.5427]
[1732076373818,1.3132,233.14,233.07,4.5427]
[1732076376314,2.1416,233.2,233.12,2.1423]
[1732076376513,2.5469,233.23,233.07,19.32888134]
[1732076377311,2.1415,233.21,233.13,2.1422]
[1732076377510,2.5469,233.23,233.07,19.32888134]
[1732076378616,2.1417,233.19,233.1,2.1424]
[1732076378917,2.1417,233.19,233.07,19.32888134]
[1732076379721,2.1415,233.21,233.12,2.1423]
[1732076379911,2.1415,233.21,233.07,19.32888134]
[1732076380318,2.1415,233.21,233.14,2.1421]
[1732076380518,2.1415,233.21,233.14,4.5421]
[1732076381218,2.5469,233.23,233.14,4.5421]
[1732076381219,2.5469,233.23,233.14,2.4]
[1732076381417,2.1416,233.2,233.14,2.4]
[1732076382545,2.5469,233.23,233.14,2.4]
[1732076382822,2.1417,233.19,233.14,2.4]
[1732076383419,2.1418,233.18,233.14,2.4]
[1732076385625,2.1418,233.18,233.11,2.1424]
[1732076387717,2.1418,233.18,233.08,2.1426]
[1732076387917,2.5469,233.23,233.09,2.38]
[1732076388327,2.1421,233.14,233.09,2.38]
[1732076388528,2.5469,233.23,233.09,2.38]
[1732076388726,10.59615459,233.2,233.09,2.38]
[1732076388927,2.1421,233.15,233.09,2.38]
[1732076390333,2.1421,233.14,233.09,2.38]
[1732076390723,2.1421,233.15,233.09,2.38]
[1732076391630,2.1421,233.15,233.09,4.5226]
[1732076392554,10.59615459,233.2,233.09,2.38]
[1732076392731,2.1421,233.14,233.09,2.38]
[1732076393329,2.142,233.16,233.09,2.38]
[1732076393534,10.59615459,233.2,233.09,2.38]
[1732076393928,10.59615459,233.2,233.09,4.5226]
[1732076394229,3.38,233.22,233.09,12.97615459]
[1732076394636,2.1419,233.17,233.11,2.1424]
[1732076395229,2.1419,233.17,233.12,2.1423]
[1732076395529,3.38,233.22,233.12,2.1423]
[1732076395770,3.38,233.22,233.1,2.38]
[1732076395935,2.1418,233.17,233.11,2.1424]
[1732076396836,2.1418,233.18,233.12,2.1423]
[1732076398527,2.1419,233.17,233.12,2.1423]
[1732076401837,11.59615459,233.22,233.1,2.1424]
[1732076402033,11.59615459,233.22,233.09,2.38]
[1732076402034,2.1421,233.14,233.09,2.38]
[1732076402346,10.59615459,233.19,233.09,4.5226]
[1732076402530,2.142,233.15,233.09,4.5226]
[1732076402736,10.59615459,233.16,233.04,10.59615459]
[1732076402936,2.1423,233.12,233.04,12.97615459]
[1732076403140,1.0,233.18,233.07,10.59615459]
[1732076403737,2.142,233.16,233.1,2.1424]
[1732076403939,1.0,233.18,233.11,2.38]
[1732076404536,2.1419,233.16,233.11,2.38]
[1732076405139,1.0,233.18,233.07,2.38]
[1732076405340,10.59615459,233.16,233.04,10.59615459]
[1732076405533,10.35451624,233.15,233.04,12.97615459]
[1732076405937,2.1424,233.11,233.04,15.11915459]
[1732076406236,2.1424,233.11,233.04,12.97615459]
[1732076406437,2.5283,233.14,233.04,12.97615459]
[1732076406634,2.5283,233.14,233.07,2.1428]
[1732076407037,2.5283,233.14,233.08,2.1427]
[1732076407643,2.1423,233.12,233.06,2.1428]
[1732076408143,10.36715103,233.13,233.06,2.1428]
[1732076409144,2.1424,233.11,233.04,15.11915459]
[1732076409448,10.36715103,233.12,232.98,10.59615459]
[1732076409749,10.36715103,233.12,232.99,2.38]
[1732076409944,10.36715103,233.12,232.98,10.59615459]
[1732076410146,2.1428,233.07,233.02,2.1431]
[1732076410947,2.1428,233.07,233.03,2.1431]
[1732076411168,2.1427,233.09,233.03,2.1431]
[1732076411352,10.36715103,233.12,233.03,2.1431]
[1732076412146,10.59615459,233.1,232.93,2.47961914]
[1732076412449,2.1431,233.04,232.94,12.97615459]
[1732076412654,10.36715103,233.09,232.94,12.97615459]
[1732076412850,2.1429,233.05,233.0,2.1434]
[1732076413043,10.36715103,233.09,233.01,2.38]
[1732076413445,10.36715103,233.08,233.04,2.143]
[1732076413639,2.1427,233.09,233.04,2.143]
[1732076414045,2.1425,233.1,233.01,2.38]
[1732076414448,10.3715834,233.12,233.01,2.38]
[1732076414662,10.3715834,233.12,233.03,10.59615459]
[1732076414841,10.3715834,233.12,232.94,0.9498]
[1732076414842,10.3715834,233.11,232.94,0.9498]
[1732076415046,2.1427,233.08,233.02,2.1431]
[1732076415250,10.3715834,233.09,233.03,2.38]
[1732076415554,3.38,233.18,233.03,2.38]
[1732076415555,10.59615459,233.16,233.03,2.38]
[1732076415740,10.37053213,233.13,233.03,2.38]
[1732076416141,10.37053213,233.13,233.08,10.59615459]
[1732076416346,10.37053213,233.12,233.09,2.38]
[1732076416547,1.0,233.18,233.09,2.38]
[1732076416741,2.142,233.15,233.1,2.1425]
[1732076418245,10.37022178,233.17,233.09,2.38]
[1732076418547,10.37022178,233.16,233.09,2.38]
[1732076418749,10.37022178,233.15,233.1,2.1424]
[1732076418946,10.37022178,233.14,233.09,2.38]
[1732076419150,1.0,233.18,233.09,2.38]
[1732076419151,10.37022178,233.13,233.09,2.38]
[1732076419449,1.0,233.18,233.09,2.38]
[1732076419450,10.37022178,233.12,233.09,2.38]
[1732076419646,1.0,233.18,233.09,2.38]
[1732076419842,2.1419,233.17,233.1,2.1424]
[1732076420045,1.0,233.18,233.09,2.38]
[1732076420352,13.5124103,233.18,233.12,2.1422]
[1732076420550,10.3706103,233.17,233.12,2.1422]
[1732076421146,10.3706103,233.16,233.12,2.1422]
[1732076421351,10.3706103,233.15,233.12,2.1422]
[1732076421546,10.3706103,233.14,233.12,2.1422]
[1732076421851,10.3706103,233.13,233.1,2.1424]
[1732076422046,10.3706103,233.12,233.08,10.59615459]
[1732076422245,10.37077582,233.11,233.09,2.38]
[1732076422448,2.142,233.16,233.09,4.5225]
[1732076422756,10.37102838,233.17,233.09,2.38]
[1732076422947,10.37102838,233.16,233.09,2.38]
[1732076423162,10.37102838,233.15,233.09,2.38]
[1732076423351,10.37102838,233.14,233.09,2.38]
[1732076423547,1.0,233.18,233.09,2.38]
[1732076423548,10.37102838,233.13,233.09,2.38]
[1732076423749,10.37102838,233.12,233.09,2.38]
[1732076424056,1.0,233.18,233.09,2.38]
[1732076424255,2.142,233.15,233.1,2.1425]
[1732076424754,10.37129865,233.17,233.09,2.38]
[1732076425055,10.37129865,233.16,233.09,2.38]
[1732076425255,10.37129865,233.15,233.09,2.38]
[1732076425455,10.37129865,233.14,233.12,2.1423]
[1732076425658,10.37129865,233.13,233.09,2.38]
[1732076425960,10.37129865,233.12,233.1,2.1424]
[1732076426157,2.1419,233.16,233.1,2.1424]
[1732076426358,2.1419,233.16,233.09,2.38]
[1732076426554,10.37272988,233.17,233.14,2.1421]
[1732076426755,10.37272988,233.16,233.14,2.1421]
[1732076426953,10.37272988,233.15,233.14,2.1421]
[1732076427253,10.37272988,233.15,233.11,10.59615459]
[1732076427489,10.37272988,233.2,233.11,10.59615459]
[1732076427653,10.37005219,233.19,233.11,10.59615459]
[1732076428058,10.37005219,233.18,233.11,10.59615459]
[1732076428251,2.1413,233.23,233.17,2.1418]
[1732076428453,10.36697569,233.25,233.18,2.38]
[1732076428757,10.36697569,233.24,233.21,2.1415]
[1732076429060,2.1411,233.26,233.21,2.1415]
[1732076429061,10.36697569,233.23,233.21,2.1415]
[1732076429262,2.1411,233.26,233.21,2.1415]
[1732076429963,10.35906529,233.28,233.21,10.59615459]
[1732076430158,0.22601,233.3,233.21,10.59615459]
[1732076430563,0.22601,233.3,233.27,2.1409]
[1732076430825,0.22601,233.3,233.28,2.38]
[1732076431766,2.36671,233.3,233.21,12.73755459]
[1732076431970,10.33150613,233.29,233.22,2.38]
[1732076432165,0.22601,233.3,233.23,2.38]
[1732076432564,0.22601,233.3,233.18,10.59615459]
[1732076432760,0.22601,233.3,233.19,2.38]
[1732076433368,2.1409,233.28,233.22,2.1414]
[1732076433767,2.1409,233.27,233.21,2.1415]
[1732076434077,0.22601,233.3,233.19,2.38]
[1732076434467,2.1411,233.26,233.21,2.1415]
[1732076434672,10.31996287,233.29,233.21,2.1415]
[1732076434866,0.22601,233.3,233.21,2.1415]
[1732076435668,0.22601,233.3,233.19,2.38]
[1732076435669,2.141,233.26,233.19,4.5216]
[1732076435966,2.141,233.26,233.19,2.38]
[1732076436573,0.22601,233.3,233.15,10.59615459]
[1732076436764,2.1412,233.24,233.17,2.1418]
[1732076437570,10.31039648,233.26,233.16,2.38]
[1732076437775,12.45149648,233.26,233.2,2.1415]
[1732076437972,10.59615459,233.27,233.16,2.38]
[1732076438367,2.1412,233.25,233.16,2.38]
[1732076439070,10.30891693,233.26,233.16,2.38]
[1732076439370,2.1413,233.23,233.17,2.1418]
[1732076439880,2.1413,233.23,233.18,2.1417]
[1732076440579,2.1413,233.23,233.16,4.5218]
[1732076440811,2.1413,233.23,233.17,2.38]
[1732076441579,2.1415,233.21,233.17,2.38]
[1732076441779,2.1415,233.21,233.16,2.1419]
[1732076441978,2.1415,233.21,233.17,2.38]
[1732076442174,2.1416,233.2,233.14,2.1421]
[1732076442379,2.1416,233.2,233.15,2.38]
[1732076442578,20.90299025,233.24,233.15,2.38]
[1732076442778,10.59615459,233.24,233.16,2.38]
[1732076443078,10.59615459,233.24,233.17,2.38]
[1732076443384,2.1414,233.22,233.17,2.38]
[1732076444378,2.1415,233.21,233.17,2.38]
[1732076444582,10.59615459,233.24,233.17,2.38]
[1732076444975,2.1416,233.2,233.17,2.38]
[1732076445487,10.59615459,233.24,233.17,2.38]
[1732076446885,10.30842388,233.23,233.17,2.38]
[1732076447680,10.59615459,233.24,233.17,2.38]
[1732076447877,2.1415,233.21,233.17,2.38]
[1732076449185,2.1418,233.18,233.17,2.38]
[1732076449577,10.30895019,233.23,233.1,10.59615459]
[1732076449889,10.30895019,233.23,233.12,2.38]
[1732076450895,2.1418,233.18,233.13,2.1422]
[1732076451987,2.1418,233.18,233.12,2.38]
[1732076452184,2.1418,233.18,233.12,4.5223]
[1732076452484,10.30895019,233.23,233.07,10.59615459]
[1732076452485,10.59615459,233.21,233.07,10.59615459]
[1732076452783,10.30895019,233.2,233.11,2.1424]
[1732076453789,2.1419,233.17,233.11,2.1424]
[1732076454481,10.30895019,233.2,233.11,2.1424]
[1732076454678,2.1419,233.16,233.11,2.1424]
[1732076454885,2.1419,233.16,233.08,2.38]
[1732076455380,10.30895019,233.19,233.12,2.1423]
[1732076455583,10.30895019,233.19,233.08,2.38]
[1732076455784,10.59615459,233.23,233.08,2.38]
[1732076455980,10.31590566,233.22,233.08,2.38]
[1732076456590,6.77990188,233.18,233.11,6.77990188]
[1732076457403,6.77990188,233.18,233.12,2.1423]
[1732076457404,2.1419,233.17,233.12,2.1423]
[1732076459089,2.1419,233.16,233.12,2.1423]
[1732076460295,2.1421,233.15,233.1,8.92230188]
[1732076462188,2.1421,233.15,233.11,2.1424]
[1732076464388,6.77990188,233.18,233.13,2.1422]
[1732076464698,6.77990188,233.18,233.14,2.38]
[1732076465094,3.41769241,233.25,233.14,2.38]
[1732076465393,2.1419,233.17,233.14,2.38]
[1732076466491,8.92180188,233.17,233.14,2.38]
[1732076469201,10.33460744,233.16,233.14,2.38]
[1732076469791,8.92180188,233.17,233.14,2.38]
[1732076469993,10.33508005,233.16,233.14,2.38]
[1732076470693,8.92180188,233.17,233.14,2.38]
[1732076470992,10.33542698,233.16,233.14,2.38]
[1732076471194,10.33542698,233.16,233.0,0.381]
[1732076471195,0.21929,233.28,233.15,6.77990188]
[1732076471410,0.21929,233.28,233.25,6.77990188]
[1732076471596,0.21929,233.28,233.26,2.38]
[1732076471792,0.21929,233.28,233.26,4.521]
[1732076473692,0.21929,233.28,233.26,2.38]
[1732076473898,6.99919188,233.28,233.25,2.38]
[1732076474695,0.21929,233.28,233.25,9.15990188]
[1732076476002,0.21929,233.28,233.26,2.141]
[1732076476199,0.21929,233.28,233.27,6.77990188]
[1732076476706,2.1401,233.36,233.3,2.1407]
[1732076476999,2.1401,233.36,233.31,2.38]
[1732076477803,6.77990188,233.37,233.31,2.38]
[1732076477998,6.77990188,233.37,233.32,2.1405]
[1732076478194,2.15993432,233.42,233.39,12.0]
[1732076478404,6.77990188,233.63,233.41,6.77990188]
[1732076478600,3.8567,233.73,233.5,10.55406071]
[1732076478808,3.8567,233.73,233.49,10.55406071]
[1732076479002,10.55406071,233.61,233.45,10.55406071]
[1732076479221,2.15029367,233.6,233.46,29.78560778]
[1732076479443,4.66599367,233.6,233.46,2.38]
[1732076479603,3.784,233.6,233.46,12.93406071]
[1732076480204,3.784,233.6,233.46,2.38]
[1732076480404,3.784,233.6,233.47,10.55406071]
[1732076481203,3.784,233.6,233.48,5.39386742]
[1732076481504,2.5157,233.6,233.49,5.39386742]
[1732076481707,2.5157,233.6,233.5,5.39386742]
[1732076482005,2.5157,233.6,233.51,2.07442512]
[1732076482204,2.5157,233.6,233.52,4.45442512]
[1732076482520,2.5157,233.6,233.53,2.07442512]
[1732076482706,2.5157,233.6,233.52,2.38]
[1732076482707,2.5157,233.6,233.54,2.07442512]